bitfinex-derivatives/quotes_SOLF0:USTF0_20250415
["timestamp","ask_amount","ask_price","bid_price","bid_amount"]
[1744737233344,7.7062,129.78,129.76,36.67544907]
[1744737233542,7.7065,129.77,129.76,28.96864907]
[1744737234043,0.04357044,129.79,129.76,28.96864907]
[1744737234243,7.7062,129.78,129.76,28.96864907]
[1744737234642,0.04357044,129.79,129.76,28.96864907]
[1744737235444,7.74917044,129.79,129.77,7.7062]
[1744737237446,0.04357044,129.79,129.76,28.96864907]
[1744737238450,7.7059,129.78,129.76,28.96864907]
[1744737239551,7.7065,129.77,129.76,28.96864907]
[1744737239851,0.04357044,129.79,129.76,28.96864907]
[1744737240051,0.04357044,129.79,129.76,36.67564907]
[1744737240252,7.7062,129.78,129.76,36.67564907]
[1744737241549,7.74917044,129.79,129.77,7.7064]
[1744737241854,0.04357044,129.79,129.76,28.96864907]
[1744737242051,0.04357044,129.79,129.76,31.02314907]
[1744737242254,0.04357044,129.79,129.76,28.96864907]
[1744737244454,7.74947044,129.79,129.76,36.67544907]
[1744737245957,7.74947044,129.79,129.77,7.7065]
[1744737247259,7.74947044,129.79,129.76,28.96864907]
[1744737247558,0.04357044,129.79,129.76,28.96864907]
[1744737248159,7.7063,129.78,129.76,28.96864907]
[1744737248958,7.7065,129.77,129.76,28.96864907]
[1744737250562,7.7065,129.77,129.76,0.04864907]
[1744737251062,7.7062,129.78,129.76,0.04864907]
[1744737251565,7.74917044,129.79,129.76,0.04864907]
[1744737251864,7.74917044,129.79,129.76,28.94864907]
[1744737252064,0.04357044,129.79,129.76,28.94864907]
[1744737253066,7.7065,129.77,129.76,28.94864907]
[1744737266178,7.7062,129.78,129.76,36.65574907]
[1744737266778,7.7062,129.78,129.76,28.94864907]
[1744737267682,7.7065,129.77,129.76,28.94864907]
[1744737270581,7.7063,129.78,129.76,28.94864907]
[1744737271375,365.0,129.85,129.77,8.04123639]
[1744737271575,8.04123639,129.84,129.79,8.04123639]
[1744737271777,365.0,129.85,129.81,8.04123639]
[1744737271977,7.7021,129.85,129.82,7.7033]
[1744737272274,544.8190919,129.89,129.81,8.04123639]
[1744737272475,7.7015,129.86,129.84,0.05395943]
[1744737272675,8.04123639,129.88,129.84,0.05395943]
[1744737272877,7.7006,129.87,129.85,7.7015]
[1744737273375,7.7015,129.86,129.84,0.05395943]
[1744737273874,7.7018,129.85,129.84,0.05395943]
[1744737274081,15.74303639,129.85,129.84,0.05395943]
[1744737277979,7.7041,129.81,129.8,28.88]
[1744737278474,7.7053,129.79,129.78,2.0974]
[1744737282584,0.05044386,129.8,129.78,9.803]
[1744737282784,0.05044386,129.8,129.78,2.0974]
[1744737283082,0.05044386,129.8,129.78,14.65573102]
[1744737283284,0.05044386,129.8,129.79,7.7053]
[1744737283474,7.7038,129.82,129.78,14.65573102]
[1744737283984,7.7031,129.83,129.78,14.65573102]
[1744737284181,16.69843102,129.89,129.8,12.55833102]
[1744737284382,28.88,129.91,129.82,12.55833102]
[1744737284582,28.88,129.91,129.84,7.7021]
[1744737284880,28.88,129.91,129.85,28.88]
[1744737285179,7.7,129.88,129.87,0.05882373]
[1744737288386,20.25833102,129.88,129.87,0.00392932]
[1744737292589,7.7029,129.83,129.82,28.86]
[1744737293389,12.55833102,129.86,129.82,28.86]
[1744737293588,0.04906726,129.85,129.83,0.05617245]
[1744737294289,7.7024,129.84,129.83,0.05617245]
[1744737295390,0.04906726,129.85,129.83,0.05617245]
[1744737295591,0.04906726,129.85,129.83,7.75887245]
[1744737295787,0.04906726,129.85,129.83,0.05617245]
[1744737296192,0.04906726,129.85,129.84,7.7024]
[1744737296988,0.04906726,129.85,129.83,7.75887245]
[1744737297198,0.04906726,129.85,129.83,0.05617245]
[1744737297696,0.04906726,129.85,129.84,7.7024]
[1744737298891,6.2837,129.93,129.83,0.05617245]
[1744737299098,365.0,129.95,129.88,12.55833102]
[1744737299394,7.6961,129.95,129.89,28.86]
[1744737299697,7.6961,129.95,129.92,7.6973]
[1744737299995,7.6961,129.95,129.92,7.75621597]
[1744737300184,12.55833102,129.97,129.93,7.6969]
[1744737300594,12.55833102,129.97,129.92,0.05891597]
[1744737300797,7.6961,129.95,129.92,7.75621597]
[1744737301693,12.55833102,129.97,129.92,0.05891597]
[1744737301894,12.55833102,129.95,129.92,0.05891597]
[1744737302597,7.697,129.93,129.92,0.05891597]
[1744737302785,12.55833102,129.95,129.92,0.05891597]
[1744737303292,12.55833102,129.93,129.86,33.1339]
[1744737303994,7.6988,129.91,129.87,7.7002]
[1744737304196,12.55833102,129.93,129.87,7.7002]
[1744737304398,0.0532359,129.9,129.88,0.05796368]
[1744737304592,7.7521359,129.9,129.88,0.05796368]
[1744737304798,0.0532359,129.9,129.89,28.84]
[1744737304998,7.6967,129.94,129.89,28.84]
[1744737305198,7.6967,129.94,129.91,7.6981]
[1744737305698,12.55833102,129.95,129.89,28.84]
[1744737305892,12.55833102,129.95,129.91,0.05423661]
[1744737307295,7.6974,129.93,129.91,0.05423661]
[1744737307902,12.55833102,129.95,129.91,0.05423661]
[1744737308599,7.6974,129.93,129.91,0.05423661]
[1744737308995,12.55833102,129.93,129.91,0.05423661]
[1744737309393,7.6976,129.92,129.91,0.05423661]
[1744737313001,7.7005,129.88,129.86,28.84]
[1744737313406,12.55833102,129.9,129.86,28.84]
[1744737313705,12.55833102,129.88,129.83,28.84]
[1744737314003,0.05040814,129.87,129.85,7.7015]
[1744737314205,0.05040814,129.87,129.86,28.84]
[1744737314603,0.05040814,129.87,129.86,36.5412]
[1744737314907,12.55833102,129.92,129.86,28.84]
[1744737315106,14.65883102,129.93,129.88,7.6999]
[1744737315401,14.65883102,129.93,129.86,28.84]
[1744737315896,14.65883102,129.93,129.88,0.05790851]
[1744737316101,0.02278058,129.91,129.88,0.05790851]
[1744737316702,7.6994,129.89,129.88,0.05790851]
[1744737317104,20.25773102,129.89,129.88,8.51e-06]
[1744737317304,7.7022,129.85,129.83,28.84]
[1744737317506,12.55833102,129.89,129.83,28.84]
[1744737318306,0.05015774,129.87,129.85,0.05445888]
[1744737319408,7.75075774,129.87,129.85,7.75585888]
[1744737320408,0.05015774,129.87,129.86,36.5412]
[1744737320611,393.84,129.92,129.86,36.5412]
[1744737320612,393.84,129.92,129.86,28.84]
[1744737320813,365.0,129.92,129.86,28.84]
[1744737321611,0.03053135,129.9,129.88,0.0549355]
[1744737324110,0.03053135,129.9,129.88,7.7546355]
[1744737325409,0.03053135,129.9,129.89,7.6994]
[1744737325609,0.03053135,129.9,129.88,0.0549355]
[1744737325809,7.72953135,129.9,129.88,0.0549355]
[1744737326011,7.72953135,129.9,129.88,7.7546355]
[1744737326310,0.03053135,129.9,129.89,28.82]
[1744737326509,0.03053135,129.9,129.89,36.5194]
[1744737330108,12.55833102,129.95,129.91,7.6977]
[1744737330313,12.55833102,129.95,129.89,28.82]
[1744737330618,12.55833102,129.95,129.9,7.6984]
[1744737331208,12.55833102,129.95,129.91,0.04889199]
[1744737332215,7.6976,129.92,129.91,0.04889199]
[1744737332906,18.78883102,129.97,129.91,0.04889199]
[1744737333112,12.55833102,129.97,129.92,28.82]
[1744737333312,7.6961,129.95,129.92,28.82]
[1744737334017,12.55833102,129.97,129.92,28.82]
[1744737334514,12.55833102,129.93,129.91,0.04889199]
[1744737334814,7.6976,129.92,129.91,0.04889199]
[1744737335313,20.25573102,129.93,129.91,0.04889199]
[1744737335517,12.55833102,129.95,129.91,0.04889199]
[1744737335817,12.55833102,129.95,129.91,7.74689199]
[1744737336317,12.55833102,129.95,129.91,0.04889199]
[1744737337015,7.6967,129.94,129.92,7.6974]
[1744737337215,12.55833102,129.95,129.91,0.04889199]
[1744737337619,41.37833102,129.95,129.91,0.04889199]
[1744737337820,7.6976,129.92,129.91,0.04889199]
[1744737338017,20.25593102,129.92,129.91,0.01836064]
[1744737346523,7.6976,129.92,129.91,0.01836064]
[1744737351037,7.7013,129.86,129.84,28.82]
[1744737351535,7.7018,129.85,129.84,28.82]
[1744737351739,12.55833102,129.86,129.81,582.94]
[1744737351939,12.60722301,129.86,129.83,0.05883655]
[1744737352238,20.26073102,129.84,129.83,0.05883655]
[1744737354543,7.7046,129.81,129.78,28.82]
[1744737355037,7.7046,129.81,129.78,36.5256]
[1744737355240,12.55833102,129.82,129.78,28.82]
[1744737355241,20.26213102,129.82,129.78,28.82]
[1744737355443,0.05234716,129.81,129.79,0.05236235]
[1744737355642,0.05234716,129.81,129.79,7.75736235]
[1744737356643,0.05234716,129.81,129.8,7.7047]
[1744737357439,372.7021,129.85,129.82,7.7033]
[1744737357645,365.0,129.89,129.81,28.82]
[1744737357846,365.0,129.89,129.86,7.701]
[1744737358148,365.0,129.89,129.84,28.82]
[1744737358345,0.05277002,129.88,129.85,7.75930419]
[1744737358738,0.05277002,129.88,129.85,0.05790419]
[1744737359039,7.7009,129.87,129.85,7.75960419]
[1744737359847,7.75287002,129.88,129.85,7.75960419]
[1744737360145,7.75287002,129.88,129.86,7.701]
[1744737360447,0.05277002,129.88,129.85,0.05790419]
[1744737361645,7.75297002,129.88,129.86,7.7009]
[1744737362447,7.7006,129.87,129.85,7.75940419]
[1744737362644,7.7006,129.87,129.85,0.05790419]
[1744737363146,7.7006,129.87,129.85,7.75960419]
[1744737363650,0.05277002,129.88,129.86,7.7008]
[1744737364048,0.05277002,129.88,129.85,0.05790419]
[1744737364249,12.55833102,129.87,129.85,0.05790419]
[1744737364450,12.55833102,129.87,129.8,1.992]
[1744737364749,12.55833102,129.87,129.79,28.82]
[1744737364750,12.55833102,129.84,129.79,28.82]
[1744737365248,7.7039,129.82,129.79,36.5251]
[1744737365443,7.75491986,129.82,129.79,36.57581647]
[1744737365642,0.05101986,129.82,129.79,28.87071647]
[1744737366249,0.05101986,129.82,129.81,7.7041]
[1744737366449,0.05101986,129.82,129.79,28.87071647]
[1744737367249,7.702,129.85,129.79,28.87071647]
[1744737367546,12.55833102,129.89,129.8,12.55833102]
[1744737367747,7.701,129.87,129.8,12.55833102]
[1744737367947,7.701,129.87,129.81,2.1734]
[1744737368144,377.55833102,129.91,129.83,0.05296875]
[1744737368349,7.7003,129.88,129.85,7.7012]
[1744737368546,7.75075244,129.88,129.86,28.8751731]
[1744737368947,7.75075244,129.88,129.86,36.5763731]
[1744737369347,7.75075244,129.88,129.86,28.8751731]
[1744737369750,7.7006,129.87,129.86,28.8751731]
[1744737370054,7.7006,129.87,129.86,0.0551731]
[1744737370351,20.25833102,129.87,129.77,28.82]
[1744737370551,12.55833102,129.83,129.78,7.7057]
[1744737370753,12.55833102,129.83,129.77,28.82]
[1744737371347,7.7051,129.8,129.79,0.05398396]
[1744737371546,0.05372371,129.81,129.79,0.05398396]
[1744737371956,7.7047,129.8,129.79,0.05398396]
[1744737372650,0.05372371,129.81,129.79,0.05398396]
[1744737372848,365.0,129.86,129.8,28.82]
[1744737373655,7.7028,129.84,129.81,7.7038]
[1744737373850,0.05810137,129.84,129.81,7.7574387]
[1744737374354,7.76080137,129.84,129.82,7.7034]
[1744737374551,7.76080137,129.84,129.81,0.0536387]
[1744737375557,7.76080137,129.84,129.81,7.7573387]
[1744737376550,0.05810137,129.84,129.82,7.7035]
[1744737377156,7.76080137,129.84,129.82,7.7035]
[1744737377355,0.05810137,129.84,129.82,7.7035]
[1744737377558,0.05810137,129.84,129.83,7.7029]
[1744737377856,0.05810137,129.84,129.81,4.3269387]
[1744737378258,7.7035,129.82,129.81,2.2003387]
[1744737378457,0.05810137,129.84,129.81,2.2003387]
[1744737378759,7.7035,129.82,129.81,0.0536387]
[1744737381662,7.7058,129.79,129.77,29.5]
[1744737382460,7.7059,129.78,129.77,29.5]
[1744737382669,0.05246298,129.79,129.76,0.05441219]
[1744737383165,7.7065,129.77,129.76,0.05441219]
[1744737388468,7.7088,129.74,129.71,29.52]
[1744737389370,7.76612569,129.74,129.71,29.57605921]
[1744737389669,7.76612569,129.74,129.72,7.7094]
[1744737390068,0.05732569,129.74,129.72,7.7094]
[1744737390771,7.76572569,129.74,129.72,7.7094]
[1744737391471,0.05732569,129.74,129.71,29.57605921]
[1744737392470,7.7092,129.73,129.71,29.57605921]
[1744737394373,7.7092,129.73,129.71,37.28585921]
[1744737394572,0.05732569,129.74,129.71,29.57605921]
[1744737394772,0.05732569,129.74,129.72,7.7095]
[1744737394971,7.76592569,129.74,129.72,7.7095]
[1744737395173,0.05732569,129.74,129.72,7.7095]
[1744737395373,0.05732569,129.74,129.73,7.7089]
[1744737397373,7.76572569,129.74,129.72,7.7092]
[1744737399277,7.7089,129.73,129.71,37.28595921]
[1744737400578,7.7095,129.72,129.71,29.57605921]
[1744737400778,0.05732569,129.74,129.71,29.57605921]
[1744737401175,7.7095,129.72,129.71,0.05605921]
[1744737401373,20.27732567,129.72,129.71,0.05605921]
[1744737402581,20.27732567,129.72,129.65,29.52]
[1744737402582,62.35565134,129.72,129.65,29.52]
[1744737402776,12.56782567,129.68,129.63,2.0949]
[1744737402979,7.7134,129.66,129.63,2.0949]
[1744737403176,7.7134,129.66,129.63,9.8092]
[1744737403381,7.76891801,129.66,129.63,2.14771229]
[1744737403579,0.05551801,129.66,129.63,2.14771229]
[1744737403982,0.05551801,129.66,129.64,7.714]
[1744737404781,7.76851801,129.66,129.64,7.714]
[1744737406178,0.05551801,129.66,129.63,0.05281229]
[1744737406378,12.56782567,129.65,129.63,0.05281229]
[1744737406582,12.56782567,129.65,129.59,29.54]
[1744737406881,7.7166,129.6,129.59,29.54]
[1744737408082,7.7172,129.59,129.58,0.05146414]
[1744737408281,12.62265895,129.61,129.58,0.05146414]
[1744737408484,12.56782567,129.59,129.58,0.05146414]
[1744737409282,20.21863503,129.61,129.58,0.05146414]
[1744737409485,7.7172,129.59,129.58,0.05146414]
[1744737410480,7.7192,129.56,129.53,31.5235]
[1744737410677,20.16380175,129.59,129.5,2.1685]
[1744737410882,20.16380175,129.57,129.5,31.7085]
[1744737411185,7.7205,129.54,129.51,7.7216]
[1744737411382,31.6793,129.58,129.5,29.54]
[1744737411581,7.7202,129.54,129.53,0.05524644]
[1744737412582,7.7234,129.49,129.46,29.74]
[1744737412975,7.7225,129.51,129.46,29.74]
[1744737413179,20.16380175,129.53,129.46,29.74]
[1744737413483,7.77203406,129.51,129.48,0.05933602]
[1744737413684,0.04953406,129.51,129.48,0.05933602]
[1744737414185,7.77203406,129.51,129.48,0.05933602]
[1744737414588,0.04953406,129.51,129.48,0.05933602]
[1744737415081,0.04953406,129.51,129.49,7.7228]
[1744737415286,0.04953406,129.51,129.48,0.05933602]
[1744737415485,0.04953406,129.51,129.49,29.74]
[1744737415784,0.04953406,129.51,129.49,37.4628]
[1744737416588,0.04953406,129.51,129.5,7.7226]
[1744737417087,0.04953406,129.51,129.49,37.463]
[1744737417483,0.04953406,129.51,129.49,29.74]
[1744737417695,0.04953406,129.51,129.5,7.7226]
[1744737419091,7.7204,129.54,129.51,7.7218]
[1744737419293,7.7204,129.54,129.49,29.74]
[1744737419694,7.7204,129.54,129.51,7.7216]
[1744737420094,7.76905109,129.54,129.51,7.77099211]
[1744737420290,0.04865109,129.54,129.51,0.04939211]
[1744737420685,7.76895109,129.54,129.51,0.04939211]
[1744737420996,0.04865109,129.54,129.51,0.04939211]
[1744737421297,7.7212,129.53,129.51,0.04939211]
[1744737421794,7.7214,129.52,129.51,0.04939211]
[1744737423201,20.16380175,129.52,129.46,29.76]
[1744737423397,49.92380175,129.52,129.46,29.76]
[1744737423894,20.16380175,129.5,129.43,2.107]
[1744737424103,20.16380175,129.48,129.41,29.76]
[1744737424304,49.97861357,129.48,129.45,0.05841711]
[1744737424502,52.00161357,129.48,129.45,0.05841711]
[1744737424905,7.725,129.46,129.45,0.05841711]
[1744737427206,0.05481182,129.48,129.45,0.05841711]
[1744737427506,367.0358,129.56,129.46,20.16380175]
[1744737427707,7.7221,129.51,129.47,35.872]
[1744737427902,367.0358,129.56,129.47,35.872]
[1744737428109,365.0,129.56,129.5,20.16380175]
[1744737428308,7.7202,129.54,129.51,29.76]
[1744737428502,7.77806133,129.54,129.51,29.80857867]
[1744737428708,0.05786133,129.54,129.51,29.80857867]
[1744737429009,396.9279,129.61,129.51,29.80857867]
[1744737429307,396.9279,129.61,129.54,7.7199]
[1744737429504,396.9279,129.61,129.54,37.4799]
[1744737429710,396.9279,129.61,129.54,29.76]
[1744737429908,0.05318905,129.59,129.56,0.05047928]
[1744737430107,7.7184,129.57,129.56,0.05047928]
[1744737430811,7.7196,129.55,129.54,29.76]
[1744737431000,20.16380175,129.58,129.51,29.76]
[1744737431204,20.16380175,129.6,129.51,37.4814]
[1744737431504,7.7205,129.54,129.51,37.4814]
[1744737431903,7.77898693,129.54,129.51,37.53543121]
[1744737432115,7.7208,129.53,129.51,29.81403121]
[1744737432608,7.7214,129.52,129.51,29.81403121]
[1744737432814,0.05848693,129.54,129.51,29.81403121]
[1744737433112,7.77898693,129.54,129.51,37.53583121]
[1744737433515,0.05848693,129.54,129.51,29.81403121]
[1744737434016,7.7214,129.52,129.51,29.81403121]
[1744737434615,7.7211,129.53,129.51,29.81403121]
[1744737434916,0.05848693,129.54,129.51,29.81403121]
[1744737436712,7.77918693,129.54,129.51,37.53573121]
[1744737436911,7.77918693,129.54,129.51,29.81403121]
[1744737436912,0.05848693,129.54,129.51,29.81403121]
[1744737437315,7.7208,129.53,129.51,29.81403121]
[1744737437517,0.05848693,129.54,129.51,29.81403121]
[1744737437811,7.7211,129.53,129.51,29.81403121]
[1744737439618,7.7214,129.52,129.51,29.81403121]
[1744737439807,0.05848693,129.54,129.51,29.81403121]
[1744737440117,7.7211,129.53,129.51,37.53593121]
[1744737440418,7.7211,129.53,129.51,29.81403121]
[1744737442320,20.16380175,129.52,129.47,3.9945]
[1744737442615,20.16380175,129.5,129.43,29.58]
[1744737442814,20.16380175,129.5,129.44,7.7257]
[1744737443015,20.16380175,129.5,129.43,29.58]
[1744737443416,7.77683271,129.48,129.45,7.78042268]
[1744737443611,0.05263271,129.48,129.45,0.05522268]
[1744737443918,7.725,129.46,129.45,0.05522268]
[1744737444114,0.05263271,129.48,129.45,0.05522268]
[1744737444417,7.7247,129.47,129.45,0.05522268]
[1744737444818,0.05263271,129.48,129.45,0.05522268]
[1744737445019,7.7244,129.47,129.45,0.05522268]
[1744737445416,0.05263271,129.48,129.45,7.78062268]
[1744737445616,365.0,129.53,129.46,49.74380175]
[1744737445815,389.19540175,129.57,129.46,51.89020175]
[1744737446016,389.19540175,129.57,129.47,2.1245]
[1744737446221,365.0,129.57,129.48,20.16380175]
[1744737446519,365.0,129.57,129.49,29.58]
[1744737446720,365.0,129.57,129.51,0.05476836]
[1744737446721,0.04879423,129.54,129.51,0.05476836]
[1744737447118,7.7211,129.53,129.51,0.05476836]
[1744737447319,0.04879423,129.54,129.51,0.05476836]
[1744737447922,0.04879423,129.54,129.51,7.77666836]
[1744737448123,0.04879423,129.54,129.51,0.05476836]
[1744737448323,7.7211,129.53,129.51,0.05476836]
[1744737449025,0.04879423,129.54,129.52,29.58]
[1744737449422,0.04879423,129.54,129.51,0.05476836]
[1744737451425,7.7211,129.53,129.51,0.05476836]
[1744737451622,0.04879423,129.54,129.51,0.05476836]
[1744737451923,7.7211,129.53,129.51,0.05476836]
[1744737452124,0.04879423,129.54,129.51,0.05476836]
[1744737452626,7.7214,129.52,129.51,0.05476836]
[1744737454328,27.88520175,129.52,129.51,0.05476836]
[1744737454524,7.7239,129.48,129.46,29.58]
[1744737454726,7.7239,129.48,129.44,1.9851]
[1744737454925,20.16380175,129.5,129.43,31.7401]
[1744737455127,7.7253,129.46,129.43,39.4665]
[1744737455426,7.7830456,129.46,129.43,39.5207523]
[1744737455923,0.0577456,129.46,129.44,7.7261]
[1744737456428,0.0577456,129.46,129.43,29.6342523]
[1744737456828,7.7262,129.44,129.43,0.0542523]
[1744737457327,7.7259,129.45,129.43,0.0542523]
[1744737457729,0.0577456,129.46,129.43,0.0542523]
[1744737457927,0.0577456,129.46,129.44,7.7262]
[1744737458432,0.0577456,129.46,129.45,7.7256]
[1744737459132,29.58,129.52,129.45,7.7256]
[1744737459133,4.0152,129.55,129.45,27.88380175]
[1744737459430,7.7199,129.55,129.47,20.16380175]
[1744737459632,20.16380175,129.54,129.46,33.7351]
[1744737460134,20.16380175,129.54,129.49,0.04978693]
[1744737460135,0.05402463,129.51,129.49,0.04978693]
[1744737460826,7.77612463,129.51,129.49,0.04978693]
[1744737461026,7.77612463,129.51,129.49,7.77288693]
[1744737461027,0.05402463,129.51,129.49,7.77288693]
[1744737461330,0.05402463,129.51,129.49,29.62978693]
[1744737461531,0.05402463,129.51,129.5,7.7226]
[1744737462030,0.05402463,129.51,129.49,29.62978693]
[1744737462833,0.05402463,129.51,129.49,0.04978693]
[1744737463034,7.7226,129.5,129.49,0.04978693]
[1744737463233,0.05402463,129.51,129.49,0.04978693]
[1744737463732,7.77622463,129.51,129.49,0.04978693]
[1744737464234,0.05402463,129.51,129.49,7.77258693]
[1744737465336,0.05402463,129.51,129.5,7.7226]
[1744737465736,0.05402463,129.51,129.49,29.62978693]
[1744737466036,0.05402463,129.51,129.49,37.35268693]
[1744737467736,7.77612463,129.51,129.49,37.35268693]
[1744737468238,7.77612463,129.51,129.49,29.62978693]
[1744737468836,0.05402463,129.51,129.49,37.35278693]
[1744737469329,7.77632463,129.51,129.49,29.62978693]
[1744737470239,7.7226,129.5,129.49,29.62978693]
[1744737470437,0.05402463,129.51,129.49,29.62978693]
[1744737470634,0.05402463,129.51,129.49,0.04978693]
[1744737471239,7.77602463,129.51,129.49,0.04978693]
[1744737471840,7.7226,129.5,129.49,0.04978693]
[1744737473342,50.61782638,129.51,129.44,9.7587]
[1744737473541,20.16380175,129.49,129.43,30.4]
[1744737474433,0.05902229,129.47,129.45,0.05657914]
[1744737474742,7.725,129.46,129.45,0.05657914]
[1744737478741,7.7274,129.42,129.4,38.1483]
[1744737478941,50.58380175,129.47,129.4,30.42]
[1744737479842,0.05702816,129.45,129.42,0.05464834]
[1744737480341,0.05702816,129.45,129.43,7.7267]
[1744737480847,7.7268,129.43,129.42,0.05464834]
[1744737481447,7.7265,129.44,129.42,0.05464834]
[1744737481647,0.05702816,129.45,129.42,0.05464834]
[1744737482542,27.89060175,129.43,129.42,0.05464834]
[1744737482748,20.16380175,129.43,129.37,2.1745]
[1744737483046,20.16380175,129.43,129.37,7.7302]
[1744737483246,12.63724554,129.42,129.35,32.399]
[1744737483751,7.78002209,129.4,129.37,7.77900641]
[1744737485245,20.36694554,129.38,129.37,0.04910641]
[1744737485744,7.7297,129.38,129.37,0.04910641]
[1744737485946,0.05122209,129.4,129.37,0.04910641]
[1744737486558,0.05122209,129.4,129.38,7.7294]
[1744737486751,0.05122209,129.4,129.37,0.04910641]
[1744737487251,0.05122209,129.4,129.39,7.7291]
[1744737491849,0.05122209,129.4,129.37,0.04910641]
[1744737492046,7.7297,129.38,129.37,0.04910641]
[1744737496655,365.0,129.37,129.29,4.4618]
[1744737496953,20.21346293,129.35,129.29,2.3774]
[1744737497150,7.7345,129.3,129.29,0.2885]
[1744737498252,0.05273312,129.31,129.29,0.2885]
[1744737498455,365.0,129.36,129.29,0.2885]
[1744737498654,7.7331,129.33,129.29,0.2885]
[1744737499054,365.0,129.36,129.3,7.7342]
[1744737499256,7.7324,129.34,129.3,9.71]
[1744737499450,0.05895821,129.33,129.31,0.05187239]
[1744737499756,365.0,129.41,129.32,30.44]
[1744737500057,606.99346293,129.45,129.34,20.21346293]
[1744737500555,0.05848758,129.41,129.38,0.05378067]
[1744737500755,7.7296,129.39,129.38,0.05378067]
[1744737501255,0.05848758,129.41,129.38,0.05378067]
[1744737501560,7.7291,129.4,129.38,0.05378067]
[1744737501746,0.05848758,129.41,129.38,0.05378067]
[1744737502657,7.7291,129.39,129.38,0.05378067]
[1744737503856,27.94256293,129.39,129.38,0.05378067]
[1744737505046,7.7325,129.34,129.32,30.6]
[1744737505753,7.7327,129.33,129.32,30.6]
[1744737506461,7.7333,129.32,129.31,0.05264308]
[1744737516671,7.733,129.33,129.31,0.05264308]
[1744737516878,0.05888642,129.34,129.31,0.05264308]
[1744737517177,7.7331,129.33,129.31,0.05264308]
[1744737517369,365.0,129.38,129.31,0.05264308]
[1744737517579,4.0614,129.41,129.31,2.22354308]
[1744737517876,20.21346293,129.4,129.32,1.9787]
[1744737518074,20.21346293,129.42,129.33,30.6]
[1744737518575,7.73,129.38,129.36,0.05339699]
[1744737518775,0.05161159,129.39,129.36,0.05339699]
[1744737519075,7.73,129.38,129.36,0.05339699]
[1744737519574,0.05161159,129.39,129.36,0.05339699]
[1744737519776,7.7303,129.37,129.36,0.05339699]
[1744737520676,7.73,129.38,129.36,0.05339699]
[1744737520882,0.05161159,129.39,129.36,0.05339699]
[1744737521274,0.05161159,129.39,129.37,7.7303]
[1744737521775,0.05161159,129.39,129.37,38.3303]
[1744737522573,0.05161159,129.39,129.37,30.6]
[1744737523072,7.7303,129.37,129.36,0.05339699]
[1744737523680,0.05161159,129.39,129.36,0.05339699]
[1744737524175,7.7303,129.37,129.36,0.05339699]
[1744737527082,7.78121159,129.39,129.36,0.05339699]
[1744737527280,0.05161159,129.39,129.36,0.05339699]
[1744737527783,0.05161159,129.39,129.37,7.7302]
[1744737528678,0.05161159,129.39,129.38,30.6]
[1744737529979,7.78071159,129.39,129.38,30.6]
[1744737531578,0.05161159,129.39,129.36,0.05339699]
[1744737532284,7.7301,129.38,129.36,0.05339699]
[1744737532684,7.7301,129.38,129.36,7.78419699]
[1744737533288,0.05161159,129.39,129.37,7.7301]
[1744737533787,0.05161159,129.39,129.36,0.05339699]
[1744737534486,7.78131159,129.39,129.36,7.78399699]
[1744737534785,0.05161159,129.39,129.36,0.05339699]
[1744737534986,7.7301,129.38,129.36,7.78419699]
[1744737535888,7.7301,129.38,129.36,0.05339699]
[1744737536389,7.7301,129.38,129.36,7.78429699]
[1744737536689,7.78111159,129.39,129.36,7.78429699]
[1744737536884,0.05161159,129.39,129.36,7.78429699]
[1744737537286,7.7298,129.38,129.36,0.05339699]
[1744737538789,7.7303,129.37,129.36,0.05339699]
[1744737539487,7.73,129.38,129.36,0.05339699]
[1744737539687,0.05161159,129.39,129.36,0.05339699]
[1744737540089,7.7303,129.37,129.36,0.05339699]
[1744737540388,0.05161159,129.39,129.36,0.05339699]
[1744737540589,7.7303,129.38,129.36,0.05339699]
[1744737540890,0.05161159,129.39,129.36,0.05339699]
[1744737541790,7.73,129.38,129.36,0.05339699]
[1744737542690,7.7303,129.37,129.36,0.05339699]
[1744737543387,0.05161159,129.39,129.36,0.05339699]
[1744737543592,0.05161159,129.39,129.36,16.30404405]
[1744737543791,16.25064706,129.45,129.36,16.30404405]
[1744737543989,7.7282,129.41,129.36,16.25064706]
[1744737544186,16.25064706,129.45,129.36,16.25064706]
[1744737544388,16.25064706,129.45,129.4,7.7283]